fUST/lending_fUST_20250828
["ID","MTS","AMOUNT","RATE_DAILY","PERIOD"]
[381863442,1756374660514,-480.0,0.00019726,2]
[381863443,1756374660523,-482.21,0.00019726,2]
[381863444,1756374660533,-4078.77,0.00019726,2]
[381863445,1756374660542,-482.80234624,0.00019726,2]
[381863446,1756374660551,-480.0,0.00019726,2]
[381863447,1756374660561,-518.06911963,0.00019726,2]
[381863448,1756374660569,-3670.82062639,0.00019749,2]
[381863449,1756374660578,-500.0,0.00019773,2]
[381863450,1756374660587,-500.0,0.00019773,2]
[381863451,1756374660596,-500.0,0.00019773,2]
[381863452,1756374660605,-500.0,0.00019773,2]
[381863453,1756374660614,-500.0,0.00019773,2]
[381863454,1756374660623,-500.0,0.00019773,2]
[381863455,1756374660632,-500.0,0.00019773,2]
[381863456,1756374660642,-212.68192478,0.00019773,2]
[381863457,1756374660650,-500.51078279,0.00019773,2]
[381863458,1756374660659,-500.0,0.00019773,2]
[381863459,1756374660668,-554.18740791,0.00019773,2]
[381863460,1756374660677,-500.0,0.00019773,2]
[381863461,1756374660686,-502.78309826,0.00019773,2]
[381863462,1756374660695,-500.0,0.00019773,2]
[381863463,1756374660704,-500.0,0.00019773,2]
[381863464,1756374660714,-500.0,0.00019773,2]
[381863465,1756374660723,-12710.44222334,0.00019792,2]
[381863466,1756374660732,-529.67291817,0.00019793,2]
[381863467,1756374660740,-160.0,0.00019793,2]
[381863468,1756374660748,-417.15472785,0.00019793,2]
[381863469,1756374660756,-845.47023312,0.00019793,2]
[381863470,1756374660764,-160.0,0.00019793,2]
[381863471,1756374660772,-160.0,0.00019793,2]
[381863472,1756374660780,-160.0,0.00019793,2]
[381863473,1756374660788,-160.0,0.00019793,2]
[381863474,1756374660796,-216.18903889,0.00019793,2]
[381863475,1756374660804,-160.0,0.00019793,2]
[381863476,1756374660812,-425.52029335,0.00019793,2]
[381863477,1756374660820,-160.0,0.00019793,2]
[381863478,1756374660828,-160.0,0.00019793,2]
[381863479,1756374660837,-217.27834477,0.00019793,2]
[381863480,1756374660846,-232.64478309,0.00019793,2]
[381863481,1756374660855,-151.0,0.000198,2]
[381863482,1756374660864,-151.0,0.000198,2]
[381863483,1756374660873,-647.0,0.000198,2]
[381863484,1756374660885,-268.56722342,0.00019857,2]
[381863485,1756374660894,-575.691897,0.00019863,2]
[381863486,1756374660904,-2453.81996093,0.00019873,2]
[381863487,1756374660913,-332.385723,0.0001989,10]
[381863488,1756374660923,-73731.58186732,0.00019899,2]
[381863489,1756374660933,-151.0,0.00019899,2]
[381863490,1756374660942,-151.0,0.000199,2]
[381863491,1756374660951,-16259.27272001,0.000199,2]
[381863492,1756374660962,-1480.50607301,0.00019926,2]
[381863493,1756374660972,-500.0,0.00019973,2]
[381863494,1756374660981,-500.0,0.00019973,2]
[381863495,1756374660990,-502.07979579,0.00019973,2]
[381863496,1756374661000,-284.17997351,0.00019973,2]
[381863497,1756374661010,-500.0,0.00019973,2]
[381863498,1756374661019,-500.0,0.00019973,2]
[381863499,1756374661029,-151.08251002,0.00019973,2]
[381863500,1756374661038,-160.43103054,0.00019973,2]
[381863501,1756374661047,-8523.44790389,0.00019978,2]
[381863502,1756374661057,-151.0,0.0002,2]
[381863503,1756374661067,-151.0,0.0002,2]
[381863504,1756374661077,-151.0,0.0002,2]
[381863505,1756374661087,-1115.0,0.0002,2]
[381863506,1756374661097,-500.0,0.0002,2]
[381863507,1756374661106,-151.0,0.0002,2]
[381863508,1756374661117,-151.43310379,0.0002,2]
[381863509,1756374661126,-230.93517409,0.0002,2]
[381863510,1756374661137,-278.09919177,0.0002,2]
[381863511,1756374661147,-151.0,0.0002,2]
[381863512,1756374661157,-151.0,0.0002,2]
[381863513,1756374661167,-500.0,0.0002,2]
[381863514,1756374661177,-193.0071354,0.0002,2]
[381863515,1756374661186,-151.0,0.0002,2]
[381863516,1756374661196,-93296.8,0.0002,2]
[381863517,1756374661205,-150.0,0.0002,2]
[381863518,1756374661215,-2480.31326833,0.0002,2]
[381863519,1756374661224,-151.0,0.0002,2]
[381863520,1756374661233,-4259.0,0.0002,5]
[381863521,1756374661243,-765.68652915,0.0002,2]
[381863522,1756374661252,-3648.96821314,0.0002,20]
[381863523,1756374661261,-12081.79945286,0.0002,2]
[381863524,1756374661271,-96398.54745622,0.0002,2]
[381863525,1756374661280,-523.68949485,0.0002,2]
[381863526,1756374661289,-13819.61487043,0.0002,2]
[381863527,1756374661434,-2664.61,0.00019452,2]
[381863528,1756374661444,-480.0,0.00019726,2]
[381863529,1756374661454,-2664.61,0.00019726,2]
[381863530,1756374661463,-5168.66797807,0.0002,2]
[381863531,1756374661473,-8575.05444999,0.0002,2]
[381863532,1756374661482,-33698.20672081,0.0002,2]
[381863533,1756374661492,-50819.55308118,0.0002,2]
[381863534,1756374661502,-480.0,0.0002,2]
[381863535,1756374661511,-480.0,0.0002,2]
[381863536,1756374661520,-480.0,0.0002,2]
[381863537,1756374661530,-817.93,0.0002,2]
[381863538,1756374661539,-480.0,0.0002,2]
[381863539,1756374661548,-572.54,0.0002,2]
[381863540,1756374661557,-480.0,0.0002,2]
[381863541,1756374661567,-480.0,0.0002,2]
[381863542,1756374661576,-188.98276846,0.0002,2]
[381863543,1756374661585,-560.92,0.0002,2]
[381863544,1756374661594,-480.0,0.0002,2]
[381863545,1756374661604,-480.0,0.0002,2]
[381863546,1756374661613,-480.0,0.0002,2]
[381863547,1756374661622,-480.0,0.0002,2]
[381863548,1756374661631,-480.0,0.0002,2]
[381863549,1756374661641,-480.0,0.0002,2]
[381863550,1756374661651,-482.67213805,0.0002,2]
[381863551,1756374661661,-555.9,0.0002,2]
[381863552,1756374661671,-480.0,0.0002,2]
[381863553,1756374661680,-480.0,0.0002,2]
[381863554,1756374661689,-734.05,0.0002,2]
[381863555,1756374661698,-480.0,0.0002,2]
[381863556,1756374661707,-558.57,0.0002,2]
[381863557,1756374661716,-480.0,0.0002,2]
[381863558,1756374661726,-781.57,0.0002,2]
[381863559,1756374661735,-480.0,0.0002,2]
[381863560,1756374661744,-480.0,0.0002,2]
[381863561,1756374661753,-704.44,0.0002,2]
[381863562,1756374661763,-480.0,0.0002,2]
[381863563,1756374661772,-480.0,0.0002,2]
[381863564,1756374661781,-480.0,0.0002,2]
[381863565,1756374661790,-480.0,0.0002,2]
[381863566,1756374661799,-480.0,0.0002,2]
[381863567,1756374661808,-480.0,0.0002,2]
[381863568,1756374661817,-480.0,0.0002,2]
[381863569,1756374661826,-480.0,0.0002,2]
[381863570,1756374661836,-480.49002954,0.0002,2]
[381863571,1756374661846,-480.0,0.0002,2]
[381863572,1756374661855,-1720.92,0.0002,2]
[381863573,1756374661864,-480.0,0.0002,2]
[381863574,1756374661874,-480.0,0.0002,2]
[381863575,1756374661886,-585.72,0.0002,2]
[381863576,1756374661895,-480.0,0.0002,2]
[381863577,1756374661904,-481.32,0.0002,2]
[381863578,1756374661913,-480.0,0.0002,2]
[381863579,1756374661923,-480.0,0.0002,2]
[381863580,1756374661932,-367.8523396,0.0002,2]
[381863581,1756374661941,-480.0,0.0002,2]
[381863582,1756374661950,-480.0,0.0002,2]
[381863583,1756374661960,-480.0,0.0002,2]
[381863584,1756374661969,-995.31,0.0002,2]
[381863585,1756374661979,-480.0,0.0002,2]
[381863586,1756374661989,-522.86,0.0002,2]
[381863587,1756374661998,-480.0,0.0002,2]
[381863588,1756374662007,-480.0,0.0002,2]
[381863589,1756374662017,-720.53,0.0002,2]
[381863590,1756374662027,-511.94,0.0002,2]
[381863591,1756374662036,-480.0,0.0002,2]
[381863592,1756374662045,-480.0,0.0002,2]
[381863593,1756374662055,-570.7,0.0002,2]
[381863594,1756374662064,-480.0,0.0002,2]
[381863595,1756374662074,-828.87,0.0002,2]
[381863596,1756374662083,-480.0,0.0002,2]
[381863597,1756374662093,-480.0,0.0002,2]
[381863598,1756374662102,-480.0,0.0002,2]
[381863599,1756374662112,-669.72,0.0002,2]
[381863600,1756374662121,-1302.91,0.0002,2]
[381863601,1756374662131,-480.0,0.0002,2]
[381863602,1756374662141,-480.0,0.0002,2]
[381863603,1756374662150,-480.0,0.0002,2]
[381863604,1756374662161,-725.42,0.0002,2]
[381863605,1756374662170,-480.0,0.0002,2]
[381863606,1756374662180,-480.0,0.0002,2]
[381863607,1756374662189,-480.0,0.0002,2]
[381863608,1756374662199,-480.0,0.0002,2]
[381863609,1756374662209,-480.0,0.0002,2]
[381863610,1756374662218,-532.21,0.0002,2]
[381863611,1756374662228,-480.0,0.0002,2]
[381863612,1756374662237,-480.0,0.0002,2]
[381863613,1756374662247,-480.0,0.0002,2]
[381863614,1756374662256,-480.0,0.0002,2]
[381863615,1756374662265,-480.0,0.0002,2]
[381863616,1756374662275,-555.6,0.0002,2]
[381863617,1756374662284,-480.0,0.0002,2]
[381863618,1756374662294,-480.0,0.0002,2]
[381863619,1756374662303,-480.0,0.0002,2]
[381863620,1756374662312,-480.0,0.0002,2]
[381863621,1756374662321,-561.08,0.0002,2]
[381863622,1756374662331,-480.0,0.0002,2]
[381863623,1756374662340,-480.0,0.0002,2]
[381863624,1756374662349,-480.0,0.0002,2]
[381863625,1756374662359,-495.2,0.0002,2]
[381863626,1756374662368,-480.0,0.0002,2]
[381863627,1756374662378,-480.0,0.0002,2]
[381863628,1756374662388,-619.46,0.0002,2]
[381863629,1756374662397,-563.64,0.0002,2]
[381863630,1756374662408,-480.0,0.0002,2]
[381863631,1756374662417,-517.99,0.0002,2]
[381863632,1756374662426,-480.0,0.0002,2]
[381863633,1756374662436,-480.0,0.0002,2]
[381863634,1756374662446,-576.2,0.0002,2]
[381863635,1756374662455,-677.45,0.0002,2]
[381863636,1756374662464,-480.0,0.0002,2]
[381863637,1756374662474,-480.0,0.0002,2]
[381863638,1756374662483,-480.0,0.0002,2]
[381863639,1756374662493,-1222.54,0.0002,2]
[381863640,1756374662502,-480.0,0.0002,2]
[381863641,1756374662512,-663.83,0.0002,2]
[381863642,1756374662521,-480.0,0.0002,2]
[381863643,1756374662531,-788.07,0.0002,2]
[381863644,1756374662540,-480.0,0.0002,2]
[381863645,1756374662550,-480.0,0.0002,2]
[381863646,1756374662559,-480.0,0.0002,2]
[381863647,1756374662569,-930.13,0.0002,2]
[381863648,1756374662578,-607.12961876,0.0002,2]
[381863649,1756374662588,-480.0,0.0002,2]
[381863650,1756374662597,-480.0,0.0002,2]
[381863651,1756374662607,-699.68,0.0002,2]
[381863652,1756374662617,-480.0,0.0002,2]
[381863653,1756374662626,-480.0,0.0002,2]
[381863654,1756374662635,-535.76,0.0002,2]
[381863655,1756374662646,-493.51,0.0002,2]
[381863656,1756374662656,-453.75615571,0.0002,2]
[381863657,1756374662957,-1963.2,0.00019178,2]
[381863658,1756374662967,-1963.2,0.00019452,2]
[381863659,1756374662977,-26.24384429,0.0002,2]
[381863660,1756374662987,-480.0,0.0002,2]
[381863661,1756374662996,-480.0,0.0002,2]
[381863662,1756374663006,-480.0,0.0002,2]
[381863663,1756374663016,-877.7,0.0002,2]
[381863664,1756374663026,-515.15,0.0002,2]
[381863665,1756374663036,-480.0,0.0002,2]
[381863666,1756374663046,-480.0,0.0002,2]
[381863667,1756374663057,-826.64,0.0002,2]
[381863668,1756374663068,-480.0,0.0002,2]
[381863669,1756374663078,-569.49,0.0002,2]
[381863670,1756374663089,-480.0,0.0002,2]
[381863671,1756374663100,-480.0,0.0002,2]
[381863672,1756374663111,-480.0,0.0002,2]
[381863673,1756374663121,-480.0,0.0002,2]
[381863674,1756374663131,-1609.66,0.0002,2]
[381863675,1756374663146,-480.0,0.0002,2]
[381863676,1756374663156,-480.0,0.0002,2]
[381863677,1756374663167,-480.0,0.0002,2]
[381863678,1756374663346,-480.0,0.0002,2]
[381863679,1756374663357,-480.0,0.0002,2]
[381863680,1756374663367,-480.0,0.0002,2]
[381863681,1756374663377,-480.0,0.0002,2]
[381863682,1756374663387,-477.61843749,0.0002,2]
[381863683,1756374663398,-480.0,0.0002,2]
[381863684,1756374663408,-480.0,0.0002,2]
[381863685,1756374663419,-480.0,0.0002,2]
[381863686,1756374663430,-488.03652524,0.0002,2]
[381863687,1756374663440,-480.0,0.0002,2]
[381863688,1756374663450,-480.0,0.0002,2]
[381863689,1756374663459,-1077.87,0.0002,2]
[381863690,1756374663469,-391.33975328,0.0002,2]
[381863691,1756374663847,-480.0,0.00019178,2]
[381863692,1756374663857,-480.0,0.00019178,2]
[381863693,1756374663867,-480.0,0.00019452,2]
[381863694,1756374663877,-1963.2,0.00019726,2]
[381863695,1756374663892,-88.66024672,0.0002,2]
[381863696,1756374663901,-480.0,0.0002,2]
[381863697,1756374663911,-480.0,0.0002,2]
[381863698,1756374663920,-480.0,0.0002,2]
[381863699,1756374663930,-571.71,0.0002,2]
[381863700,1756374663939,-217.83170636,0.0002,2]
[381863701,1756374663948,-418.10804693,0.0002,2]
[381863712,1756374838688,-216.50532427,0.0001831,2]
[381863713,1756374840919,-418.6261776,0.0001831,2]
[381863714,1756374842494,-300.0,0.0001831,2]
[381863715,1756374844608,-289.42879766,0.0001831,2]
[381863716,1756374847324,-162.85703326,0.0001831,2]
[381863718,1756374851770,-204.82746532,0.0001831,2]
[381863719,1756374856649,-275.76286768,0.0001831,2]
[381863720,1756374858343,-190.7112023,0.0001831,2]
[381863721,1756374859861,-180.135331,0.0001831,2]
[381863722,1756374862582,-374.65611712,0.0001831,2]
[381863723,1756374864201,-384.82617049,0.0001831,2]
[381863724,1756375000837,300.43422107,0.0001,2]
[381863727,1756375273114,-300.0,0.00017932,2]
[381863728,1756375277777,-202.86858547,0.00017932,2]
[381863729,1756375279424,-168.94994048,0.00017932,2]
[381863730,1756375281087,-202.28306803,0.00017932,2]
[381863731,1756375283857,-160.97979663,0.00017932,2]
[381863732,1756375283877,-17.04457337,0.00018013,2]
[381863733,1756375285574,-174.33667107,0.00018013,2]
[381863734,1756375285596,-3.3844097,0.00018113,2]
[381863735,1756375289332,-205.9939828,0.00018113,2]
[381863736,1756375295688,-242.13065232,0.00017932,2]
[381863737,1756375297300,-129.68787363,0.00017932,2]
[381863738,1756375297323,-81.4983535,0.00018113,2]
[381863764,1756375467953,673.291506,0.00013699,2]
[381863775,1756375620435,151.0,0.00027397,120]
[381863814,1756375832406,-205.9939828,0.00018788,6]
[381863816,1756375832416,-172.3145046,0.00018975,2]
[381863818,1756375832425,-200.4769855,0.00019,2]
[381863820,1756375832435,-1669.327936,0.00019,2]
[381863822,1756375832444,-300.0,0.00019075,2]
[381863824,1756375832453,-457.21506832,0.00019076,2]
[381863826,1756375832463,-500.0,0.00019076,2]
[381863828,1756375832472,-500.0,0.00019076,2]
[381863829,1756375832481,-500.0,0.00019076,2]
[381863831,1756375832491,-183.86184299,0.00019076,2]
[381863833,1756375832500,-500.0,0.00019076,2]
[381863835,1756375832510,-376.3491522,0.00019076,2]
[381863840,1756375832529,-123.6508478,0.00019076,2]
[381863842,1756375832542,-315.13282473,0.00019076,2]
[381863844,1756375832551,-500.0,0.00019076,2]
[381863846,1756375832560,-500.0,0.00019076,2]
[381863848,1756375832569,-500.0,0.00019076,2]
[381863850,1756375832579,-431.62456716,0.00019076,2]
[381863852,1756375832589,-500.0,0.00019076,2]
[381863854,1756375832598,-167.83138914,0.00019076,2]
[381863856,1756375832611,-332.16861086,0.00019076,2]
[381863858,1756375832622,-281.84912621,0.00019076,2]
[381863860,1756375832634,-218.15087379,0.00019076,2]
[381863862,1756375832643,-500.0,0.00019076,2]
[381863864,1756375832652,-500.0,0.00019076,2]
[381863866,1756375832661,-500.0,0.00019076,2]
[381863869,1756375832672,-461.85893494,0.00019076,2]
[381863871,1756375832682,-500.0,0.00019076,2]
[381863873,1756375832691,-350.31000997,0.00019076,2]
[381863875,1756375832700,-500.0,0.00019076,2]
[381863877,1756375832710,-500.0,0.00019076,2]
[381863879,1756375832720,-500.0,0.00019076,2]
[381863881,1756375832729,-500.0,0.00019076,2]
[381863883,1756375832738,-500.0,0.00019076,2]
[381863885,1756375832747,-500.0,0.00019076,2]
[381863887,1756375832757,-500.0,0.00019076,2]
[381863889,1756375832766,-171.65939358,0.00019076,2]
[381863891,1756375832776,-500.0,0.00019076,2]
[381863893,1756375832785,-500.0,0.00019076,2]
[381863895,1756375832795,-500.0,0.00019076,2]
[381863897,1756375832804,-565.97851437,0.00019076,2]
[381863899,1756375832814,-500.0,0.00019076,2]
[381863901,1756375832823,-10.27088963,0.00019076,2]
[381863903,1756375832835,-489.72911037,0.00019076,2]
[381863905,1756375832844,-500.0,0.00019076,2]
[381863907,1756375832853,-500.0,0.00019076,2]
[381863909,1756375832863,-500.0,0.00019076,2]
[381863911,1756375832872,-500.0,0.00019076,2]
[381863913,1756375832883,-500.0,0.00019076,2]
[381863915,1756375832895,-500.0,0.00019076,2]
[381863917,1756375832904,-500.0,0.00019076,2]
[381863919,1756375832914,-392.69093652,0.00019076,2]
[381863922,1756375832924,-500.0,0.00019076,2]
[381863924,1756375832934,-500.0,0.00019076,2]
[381863926,1756375832943,-500.0,0.00019076,2]
[381863928,1756375832953,-500.0,0.00019077,2]
[381863930,1756375832962,-6647.52164046,0.00019078,2]
[381863932,1756375832971,-1591.47065504,0.00019078,2]
[381863934,1756375832981,-747.36784744,0.0001908,2]
[381863935,1756375832994,-187.78006525,0.00019166,2]
[381863936,1756375833003,-153.51,0.00019168,3]
[381863937,1756375833012,-537.3,0.00019168,3]
[381863938,1756375833022,-268.65,0.00019168,3]
[381863939,1756375833032,-805.99,0.00019168,3]
[381863940,1756375833042,-502.78309826,0.00019173,2]
[381863941,1756375833062,-500.0,0.00019173,2]
[381863942,1756375833073,-500.0,0.00019173,2]
[381863943,1756375833083,-500.0,0.00019173,2]
[381863944,1756375833093,-500.0,0.00019173,2]
[381863945,1756375833104,-500.0,0.00019173,2]
[381863946,1756375833114,-500.0,0.00019173,2]
[381863947,1756375833124,-500.0,0.00019173,2]
[381863948,1756375833134,-503.61448562,0.00019173,2]
[381863949,1756375833144,-500.0,0.00019173,2]
[381863950,1756375833153,-575.25677081,0.00019173,2]
[381863951,1756375833163,-500.0,0.00019173,2]
[381863952,1756375833173,-500.0,0.00019173,2]
[381863953,1756375833183,-207.74009214,0.00019178,2]
[381863954,1756375833193,-480.0,0.00019178,2]
[381863955,1756375833203,-480.0,0.00019178,2]
[381863956,1756375833213,-480.0,0.00019178,2]
[381863957,1756375833223,-480.0,0.00019178,2]
[381863958,1756375833233,-480.0,0.00019178,2]
[381863959,1756375833243,-480.0,0.00019178,2]
[381863960,1756375833253,-480.0,0.00019178,2]
[381863961,1756375833262,-517.61,0.00019178,2]
[381863962,1756375833272,-480.0,0.00019178,2]
[381863963,1756375833282,-480.0,0.00019178,2]
[381863964,1756375833293,-480.0,0.00019178,2]
[381863965,1756375833302,-480.0,0.00019178,2]
[381863966,1756375833312,-480.0,0.00019178,2]
[381863967,1756375833322,-347.02050352,0.00019178,2]
[381863968,1756375833331,-480.0,0.00019178,2]
[381863969,1756375833340,-480.0,0.00019178,2]
[381863970,1756375833350,-480.0,0.00019178,2]
[381863971,1756375833360,-480.0,0.00019178,2]
[381863972,1756375833369,-658.55,0.00019178,2]
[381863973,1756375833380,-480.0,0.00019178,2]
[381863974,1756375833389,-480.0,0.00019178,2]
[381863975,1756375833400,-480.0,0.00019178,2]
[381863976,1756375833410,-500.0,0.00019178,2]
[381863977,1756375833420,-481.87488358,0.00019178,2]
[381863978,1756375833429,-314.36429447,0.00019178,2]
[381863979,1756375833441,-480.0,0.00019178,2]
[381863980,1756375833451,-480.0,0.00019178,2]
[381863981,1756375833461,-480.0,0.00019178,2]
[381863982,1756375833471,-480.0,0.00019178,2]
[381863983,1756375833481,-633.48,0.00019178,2]
[381863984,1756375833490,-480.0,0.00019178,2]
[381863985,1756375833501,-480.0,0.00019178,2]
[381863986,1756375833510,-480.0,0.00019178,2]
[381863987,1756375833520,-480.0,0.00019178,2]
[381863988,1756375833530,-495.65,0.00019178,2]
[381863989,1756375833542,-480.0,0.00019178,2]
[381863990,1756375833553,-480.0,0.00019178,2]
[381863991,1756375833564,-480.0,0.00019178,2]
[381863992,1756375833573,-480.0,0.00019178,2]
[381863993,1756375833583,-480.0,0.00019178,2]
[381863994,1756375833593,-480.0,0.00019178,2]
[381863995,1756375833602,-480.0,0.00019178,2]
[381863996,1756375833612,-480.0,0.00019178,2]
[381863997,1756375833622,-480.0,0.00019178,2]
[381863998,1756375833632,-370.58135829,0.00019178,2]
[381863999,1756375833642,-480.0,0.00019178,2]
[381864000,1756375833652,-480.0,0.00019178,2]
[381864001,1756375833662,-480.0,0.00019178,2]
[381864002,1756375833672,-480.0,0.00019178,2]
[381864003,1756375833683,-480.0,0.00019178,2]
[381864004,1756375833692,-480.0,0.00019178,2]
[381864005,1756375833702,-480.0,0.00019178,2]
[381864006,1756375833712,-480.0,0.00019178,2]
[381864007,1756375833722,-480.0,0.00019178,2]
[381864008,1756375833732,-480.0,0.00019178,2]
[381864009,1756375833743,-480.0,0.00019178,2]
[381864010,1756375833753,-480.0,0.00019178,2]
[381864011,1756375833763,-480.0,0.00019178,2]
[381864012,1756375833773,-480.0,0.00019178,2]
[381864013,1756375833783,-480.0,0.00019178,2]
[381864014,1756375833794,-480.0,0.00019178,2]
[381864015,1756375833803,-480.0,0.00019178,2]
[381864016,1756375833813,-480.0,0.00019178,2]
[381864017,1756375833823,-480.0,0.00019178,2]
[381864018,1756375833832,-397.09743553,0.00019178,2]
[381864019,1756375833842,-480.0,0.00019178,2]
[381864020,1756375833852,-480.0,0.00019178,2]
[381864021,1756375833862,-722.62,0.00019178,2]
[381864022,1756375833872,-465.37285548,0.00019178,2]
[381864023,1756375833882,-480.0,0.00019178,2]
[381864024,1756375833891,-480.0,0.00019178,2]
[381864025,1756375833901,-818.31,0.00019178,2]
[381864026,1756375833911,-480.0,0.00019178,2]
[381864027,1756375833921,-480.0,0.00019178,2]
[381864028,1756375833931,-201.82760092,0.00019178,2]
[381864029,1756375833940,-475.73586994,0.00019178,2]
[381864030,1756375833950,-480.0,0.00019178,2]
[381864031,1756375833960,-480.0,0.00019178,2]
[381864032,1756375833970,-480.0,0.00019178,2]
[381864033,1756375833979,-480.0,0.00019178,2]
[381864034,1756375833989,-653.06,0.00019178,2]
[381864035,1756375833999,-480.0,0.00019178,2]
[381864036,1756375834008,-480.0,0.00019178,2]
[381864037,1756375834018,-480.0,0.00019178,2]
[381864038,1756375834028,-480.0,0.00019178,2]
[381864039,1756375834037,-480.0,0.00019178,2]
[381864040,1756375834047,-480.0,0.00019178,2]
[381864041,1756375834057,-480.0,0.00019178,2]
[381864042,1756375834067,-480.0,0.00019178,2]
[381864043,1756375834077,-480.0,0.00019178,2]
[381864044,1756375834087,-480.0,0.00019178,2]
[381864045,1756375834097,-480.0,0.00019178,2]
[381864046,1756375834107,-378.73853728,0.00019178,2]
[381864047,1756375834117,-480.0,0.00019178,2]
[381864048,1756375834127,-480.0,0.00019178,2]
[381864049,1756375834137,-480.0,0.00019178,2]
[381864050,1756375834148,-1567.26,0.00019178,2]
[381864051,1756375834158,-480.0,0.00019178,2]
[381864052,1756375834169,-480.0,0.00019178,2]
[381864053,1756375834180,-352.14546826,0.00019178,2]
[381864054,1756375834190,-480.0,0.00019178,2]
[381864055,1756375834200,-480.0,0.00019178,2]
[381864056,1756375834210,-480.0,0.00019178,2]
[381864057,1756375834220,-480.0,0.00019178,2]
[381864058,1756375834230,-512.45,0.00019178,2]
[381864059,1756375834241,-480.0,0.00019178,2]
[381864060,1756375834252,-480.0,0.00019178,2]
[381864061,1756375834261,-481.81904861,0.00019178,2]
[381864062,1756375834271,-480.0,0.00019178,2]
[381864063,1756375834281,-480.0,0.00019178,2]
[381864064,1756375834290,-480.0,0.00019178,2]
[381864065,1756375834300,-480.0,0.00019178,2]
[381864066,1756375834309,-481.88444748,0.00019178,2]
[381864067,1756375834318,-480.0,0.00019178,2]
[381864068,1756375834326,-484.23,0.00019178,2]
[381864069,1756375834335,-480.0,0.00019178,2]
[381864070,1756375834345,-480.0,0.00019178,2]
[381864071,1756375834355,-480.0,0.00019178,2]
[381864072,1756375834364,-480.0,0.00019178,2]
[381864073,1756375834375,-481.51322124,0.00019178,2]
[381864074,1756375834384,-480.0,0.00019178,2]
[381864075,1756375834394,-480.0,0.00019178,2]
[381864076,1756375834403,-868.69,0.00019178,2]
[381864077,1756375834414,-480.0,0.00019178,2]
[381864078,1756375834425,-480.0,0.00019178,2]
[381864079,1756375834435,-480.0,0.00019178,2]
[381864080,1756375834444,-480.0,0.00019178,2]
[381864081,1756375834454,-480.0,0.00019178,2]
[381864082,1756375834464,-480.0,0.00019178,2]
[381864083,1756375834474,-480.0,0.00019178,2]
[381864084,1756375834484,-480.0,0.00019178,2]
[381864085,1756375834493,-480.0,0.00019178,2]
[381864086,1756375834504,-480.0,0.00019178,2]
[381864087,1756375834513,-480.0,0.00019178,2]
[381864088,1756375834524,-480.0,0.00019178,2]
[381864089,1756375834535,-480.0,0.00019178,2]